[Event "World Prestigious University 2019"]
[Site "Tianjin"]
[Date "2019.11.29"]
[Round "10.9"]
[White "Wang, Nancy"]
[Black "Xiao, Yiyi"]
[Result "0-1"]
[WhiteElo "1823"]
[BlackElo "2306"]
[PlyCount "112"]
[EventDate "2019.11.26"]
[EventType "team-tourn"]
[EventCountry "CHN"]
[TimeControl "1500+10"]
[WhiteClock "0:01:43"]
[BlackClock "0:01:03"]

1. e4 {[%emt 0:00:00]} e5 {[%emt 0:00:04]} 2. Nf3 {[%emt 0:00:00]} Nc6 {[%emt 0:00:01]} 3. d4 {[%emt 0:00:09]} exd4 {[%emt 0:00:17]} 4. Nxd4 {[%emt 0:00:03]} Bc5 {[%emt 0:00:15]} 5. Be3 {[%emt 0:00:06]} Qf6 {[%emt 0:00:16]} 6. c3 {[%emt 0:00:06]} Nge7 {[%emt 0:00:02]} 7. Bc4 {[%emt 0:00:16]} d6 {[%emt 0:06:42]} 8. O-O {[%emt 0:00:26]} Ne5 {[%emt 0:00:24]} 9. Be2 {[%emt 0:00:20]} Qg6 {[%emt 0:00:15]} 10. f3 {[%emt 0:01:14]} O-O {[%emt 0:01:30]} 11. Kh1 {[%emt 0:00:52]} Bb6 {[%emt 0:04:30]} 12. a4 {[%emt 0:00:40]} a5 {[%emt 0:01:27]} 13. Nd2 {[%emt 0:05:32]} d5 {[%emt 0:02:34]} 14. Bf4 {[%emt 0:02:28]} N5c6 {[%emt 0:01:59]} 15. Nb5 {[%emt 0:01:45]} dxe4 {[%emt 0:00:14]} 16. fxe4 {[%emt 0:05:40]} Bd7 {[%emt 0:03:16]} 17. Nxc7 {[%emt 0:00:40]} Bxc7 {[%emt 0:00:52]} 18. Bxc7 {[%emt 0:00:03]} f5 {[%emt 0:00:06]} 19. exf5 {[%emt 0:01:40]} Bxf5 {[%emt 0:00:14]} 20. Bh5 {[%emt 0:01:56]} Qg5 {[%emt 0:00:42]} 21. Bf4 {[%emt 0:00:43]} Qh4 {[%emt 0:00:01]} 22. Bg3 {[%emt 0:00:44]} Qg5 {[%emt 0:00:02]} 23. Bf4 {[%emt 0:00:05]} Qf6 {[%emt 0:00:01]} 24. Qb3+ {[%emt 0:01:22]} Kh8 {[%emt 0:00:07]} 25. Be2 {[%emt 0:01:21]} Rad8 {[%emt 0:00:15]} 26. Rad1 {[%emt 0:00:16]} Nd5 {[%emt 0:00:16]} 27. Qxb7 {[%emt 0:00:38]} Nxf4 {[%emt 0:01:05]} 28. Rxf4 {[%emt 0:00:02]} Qe5 {[%emt 0:00:16]} 29. Rf2 {[%emt 0:00:11]} Qc5 {[%emt 0:01:25]} 30. Rff1 {[%emt 0:00:25]} Rb8 {[%emt 0:00:29]} 31. Qa6 {[%emt 0:00:13]} Rxb2 {[%emt 0:00:08]} 32. Bf3 {[%emt 0:00:05]} Ne5 {[%emt 0:00:06]} 33. Qe2 {[%emt 0:00:11]} Bd3 {[%emt 0:00:03]} 34. Qf2 {[%emt 0:00:08]} Qxc3 {[%emt 0:00:08]} 35. Rfe1 {[%emt 0:00:09]} h6 {[%emt 0:00:13]} 36. Qe3 {[%emt 0:00:07]} Re8 {[%emt 0:00:21]} 37. Ne4 {[%emt 0:00:13]} Qb4 {[%emt 0:00:08]} 38. Rg1 {[%emt 0:00:18]} Bc2 {[%emt 0:00:06]} 39. Rde1 {[%emt 0:00:09]} Nf7 {[%emt 0:00:17]} 40. Qc1 {[%emt 0:00:11]} Bxa4 {[%emt 0:00:07]} 41. Bh5 {[%emt 0:00:11]} Rxe4 {[%emt 0:00:17]} 42. Rxe4 {[%emt 0:00:04]} Qxe4 {[%emt 0:00:01]} 43. Qxb2 {[%emt 0:00:02]} Ne5 {[%emt 0:00:08]} 44. Qf2 {[%emt 0:00:25]} Bc6 {[%emt 0:00:04]} 45. h3 {[%emt 0:00:04]} Nd3 {[%emt 0:00:10]} 46. Qg3 {[%emt 0:00:04]} Qd4 {[%emt 0:00:13]} 47. Bg6 {[%emt 0:00:08]} Nf4 {[%emt 0:00:05]} 48. Bc2 {[%emt 0:00:13]} Qxg1+ {[%emt 0:00:05]} 49. Kxg1 {[%emt 0:00:04]} Ne2+ {[%emt 0:00:00]} 50. Kf2 {[%emt 0:00:02]} Nxg3 {[%emt 0:00:01]} 51. Kxg3 {[%emt 0:00:01]} Kg8 {[%emt 0:00:03]} 52. Kf2 {[%emt 0:00:10]} Kf7 {[%emt 0:00:01]} 53. g3 {[%emt 0:00:05]} Ke6 {[%emt 0:00:02]} 54. Ke3 {[%emt 0:00:01]} Ke5 {[%emt 0:00:01]} 55. Bb3 {[%emt 0:00:14]} a4 {[%emt 0:00:03]} 56. Bf7 {[%emt 0:00:02]} Bd5 {[%emt 0:00:09]} 0-1

[Event "World Prestigious University 2019"]
[Site "Tianjin"]
[Date "2019.11.29"]
[Round "10.10"]
[White "Fernandez, Daniel Howard"]
[Black "Green, Michael L"]
[Result "0-1"]
[WhiteElo "2444"]
[BlackElo "2073"]
[PlyCount "124"]
[EventDate "2019.11.26"]
[EventType "team-tourn"]
[EventCountry "CHN"]
[TimeControl "1500+10"]
[WhiteClock "0:00:45"]
[BlackClock "0:01:08"]

1. e4 {[%emt 0:00:00]} c5 {[%emt 0:00:00]} 2. Nf3 {[%emt 0:00:00]} Nc6 {[%emt 0:00:00]} 3. Bb5 {[%emt 0:00:00]} Nf6 {[%emt 0:00:02]} 4. e5 {[%emt 0:01:56]} Nd5 {[%emt 0:00:01]} 5. O-O {[%emt 0:00:13]} Nc7 {[%emt 0:00:02]} 6. Bxc6 {[%emt 0:00:39]} dxc6 {[%emt 0:00:04]} 7. Re1 {[%emt 0:00:34]} Bg4 {[%emt 0:00:29]} 8. h3 {[%emt 0:00:10]} Bh5 {[%emt 0:00:04]} 9. d3 {[%emt 0:00:28]} e6 {[%emt 0:00:26]} 10. Nbd2 {[%emt 0:01:14]} Qd5 {[%emt 0:01:36]} 11. Qe2 {[%emt 0:01:53]} Be7 {[%emt 0:01:20]} 12. g4 {[%emt 0:05:57]} Bg6 {[%emt 0:00:10]} 13. Nc4 {[%emt 0:00:02]} h5 {[%emt 0:01:42]} 14. Ne3 {[%emt 0:01:55]} Qd7 {[%emt 0:01:50]} 15. g5 {[%emt 0:00:51]} h4 {[%emt 0:00:02]} 16. Bd2 {[%emt 0:00:25]} O-O-O {[%emt 0:01:19]} 17. a3 {[%emt 0:02:19]} f6 {[%emt 0:03:49]} 18. Ng2 {[%emt 0:00:49]} Bf5 {[%emt 0:01:13]} 19. Kh2 {[%emt 0:01:07]} fxg5 {[%emt 0:00:34]} 20. Bxg5 {[%emt 0:00:44]} Bxg5 {[%emt 0:00:28]} 21. Nxg5 {[%emt 0:00:01]} Qe7 {[%emt 0:01:04]} 22. Ne4 {[%emt 0:00:34]} g5 {[%emt 0:07:08]} 23. Nd6+ {[%emt 0:01:08]} Kb8 {[%emt 0:00:03]} 24. Ne3 {[%emt 0:00:52]} Rdf8 {[%emt 0:00:48]} 25. b4 {[%emt 0:02:19]} cxb4 {[%emt 0:00:47]} 26. axb4 {[%emt 0:00:03]} Nd5 {[%emt 0:00:04]} 27. Nxd5 {[%emt 0:00:22]} exd5 {[%emt 0:00:38]} 28. f3 {[%emt 0:00:30]} Qe6 {[%emt 0:00:30]} 29. Qg2 {[%emt 0:00:24]} Rhg8 {[%emt 0:01:04]} 30. b5 {[%emt 0:00:37]} c5 {[%emt 0:00:16]} 31. b6 {[%emt 0:00:14]} a6 {[%emt 0:00:25]} 32. Re3 {[%emt 0:00:46]} Rg7 {[%emt 0:01:25]} 33. Nxf5 {[%emt 0:00:20]} Qxf5 {[%emt 0:00:08]} 34. Qg4 {[%emt 0:00:03]} Qxg4 {[%emt 0:00:34]} 35. hxg4 {[%emt 0:00:02]} Rf4 {[%emt 0:00:01]} 36. e6 {[%emt 0:00:16]} Re7 {[%emt 0:00:01]} 37. Ra5 {[%emt 0:00:25]} Rb4 {[%emt 0:00:26]} 38. Rxc5 {[%emt 0:00:10]} d4 {[%emt 0:00:11]} 39. Ree5 {[%emt 0:00:24]} Rxb6 {[%emt 0:00:03]} 40. Rxg5 {[%emt 0:00:20]} Rbxe6 {[%emt 0:00:02]} 41. Kh3 {[%emt 0:00:18]} Re3 {[%emt 0:00:18]} 42. Rgf5 {[%emt 0:00:05]} Rh7 {[%emt 0:00:10]} 43. Rcd5 {[%emt 0:00:11]} Re2 {[%emt 0:00:15]} 44. Rxd4 {[%emt 0:00:07]} Rxc2 {[%emt 0:00:02]} 45. Rh5 {[%emt 0:00:07]} Rf7 {[%emt 0:00:18]} 46. f4 {[%emt 0:00:15]} Rg7 {[%emt 0:00:06]} 47. Kxh4 {[%emt 0:00:16]} Rh2+ {[%emt 0:00:03]} 48. Kg3 {[%emt 0:00:01]} Rxh5 {[%emt 0:00:02]} 49. g5 {[%emt 0:00:20]} Rh1 {[%emt 0:00:21]} 50. Kg4 {[%emt 0:00:07]} Kc7 {[%emt 0:00:27]} 51. Kf5 {[%emt 0:00:05]} Rd7 {[%emt 0:00:13]} 52. Rc4+ {[%emt 0:00:12]} Kd8 {[%emt 0:00:03]} 53. Kf6 {[%emt 0:00:10]} Rxd3 {[%emt 0:00:25]} 54. g6 {[%emt 0:00:01]} Rg1 {[%emt 0:00:06]} 55. Kf7 {[%emt 0:00:05]} Rd7+ {[%emt 0:00:08]} 56. Kf6 {[%emt 0:00:08]} Rd6+ {[%emt 0:00:04]} 57. Ke5 {[%emt 0:00:10]} Rdxg6 {[%emt 0:00:10]} 58. f5 {[%emt 0:00:02]} Re1+ {[%emt 0:00:08]} 59. Kf4 {[%emt 0:00:10]} Rc6 {[%emt 0:00:02]} 60. Rd4+ {[%emt 0:00:05]} Ke7 {[%emt 0:00:05]} 61. Kg5 {[%emt 0:00:07]} Rg1+ {[%emt 0:00:12]} 62. Kf4 {[%emt 0:00:04]} Kf6 {[%emt 0:00:08]} 0-1

[Event "World Prestigious University 2019"]
[Site "Tianjin"]
[Date "2019.11.29"]
[Round "10.11"]
[White "Zhong, Wei"]
[Black "Behar, Joshua"]
[Result "0-1"]
[WhiteElo "1804"]
[BlackElo "1974"]
[PlyCount "94"]
[EventDate "2019.11.26"]
[EventType "team-tourn"]
[EventCountry "CHN"]
[TimeControl "1500+10"]
[WhiteClock "0:01:23"]
[BlackClock "0:00:40"]

1. e4 {[%emt 0:00:00]} e6 {[%emt 0:00:00]} 2. d4 {[%emt 0:00:02]} d5 {[%emt 0:00:00]} 3. exd5 {[%emt 0:00:22]} exd5 {[%emt 0:00:00]} 4. Bd3 {[%emt 0:00:02]} Nf6 {[%emt 0:00:00]} 5. Nf3 {[%emt 0:00:27]} Bd6 {[%emt 0:00:01]} 6. Qe2+ {[%emt 0:00:20]} Be6 {[%emt 0:00:02]} 7. O-O {[%emt 0:01:00]} O-O {[%emt 0:00:08]} 8. Bg5 {[%emt 0:01:07]} h6 {[%emt 0:00:09]} 9. Bh4 {[%emt 0:00:40]} Re8 {[%emt 0:00:11]} 10. Ne5 {[%emt 0:01:44]} c5 {[%emt 0:00:28]} 11. c3 {[%emt 0:01:32]} Nc6 {[%emt 0:02:45]} 12. Nxc6 {[%emt 0:04:14]} bxc6 {[%emt 0:00:00]} 13. Qd1 {[%emt 0:01:34]} Rb8 {[%emt 0:00:00]} 14. dxc5 {[%emt 0:01:32]} Bxc5 {[%emt 0:00:00]} 15. b3 {[%emt 0:00:23]} Bd6 {[%emt 0:01:44]} 16. Kh1 {[%emt 0:01:26]} Bd7 {[%emt 0:00:45]} 17. Nd2 {[%emt 0:01:30]} c5 {[%emt 0:00:53]} 18. c4 {[%emt 0:00:37]} d4 {[%emt 0:00:54]} 19. f3 {[%emt 0:03:10]} g5 {[%emt 0:01:24]} 20. Bf2 {[%emt 0:00:25]} Qc7 {[%emt 0:00:22]} 21. Bg1 {[%emt 0:00:45]} Bc6 {[%emt 0:00:12]} 22. Qc2 {[%emt 0:00:42]} Re7 {[%emt 0:00:45]} 23. Rae1 {[%emt 0:00:41]} Rbe8 {[%emt 0:00:07]} 24. Rxe7 {[%emt 0:00:58]} Qxe7 {[%emt 0:04:53]} 25. Bf5 {[%emt 0:00:51]} Bf4 {[%emt 0:02:26]} 26. g3 {[%emt 0:01:03]} Bxd2 {[%emt 0:03:04]} 27. Qxd2 {[%emt 0:00:02]} Qe2 {[%emt 0:00:02]} 28. Qd3 {[%emt 0:00:56]} g4 {[%emt 0:00:24]} 29. Qxe2 {[%emt 0:01:23]} Rxe2 {[%emt 0:00:07]} 30. Bf2 {[%emt 0:00:04]} Bxf3+ {[%emt 0:00:22]} 31. Kg1 {[%emt 0:00:02]} Rxa2 {[%emt 0:01:14]} 32. h3 {[%emt 0:00:17]} h5 {[%emt 0:00:28]} 33. hxg4 {[%emt 0:00:04]} hxg4 {[%emt 0:00:01]} 34. b4 {[%emt 0:00:12]} cxb4 {[%emt 0:00:55]} 35. c5 {[%emt 0:00:03]} Nd5 {[%emt 0:00:53]} 36. Re1 {[%emt 0:00:28]} Rd2 {[%emt 0:00:47]} 37. Kf1 {[%emt 0:00:13]} a5 {[%emt 0:00:40]} 38. c6 {[%emt 0:00:11]} Kf8 {[%emt 0:01:40]} 39. Rc1 {[%emt 0:00:15]} Nc7 {[%emt 0:00:15]} 40. Ra1 {[%emt 0:00:04]} Ke7 {[%emt 0:01:31]} 41. Be1 {[%emt 0:00:12]} Rb2 {[%emt 0:00:21]} 42. Rxa5 {[%emt 0:00:07]} Kd6 {[%emt 0:00:03]} 43. Ra4 {[%emt 0:00:09]} Nd5 {[%emt 0:00:02]} 44. c7 {[%emt 0:00:17]} Ne3+ {[%emt 0:00:11]} 45. Kg1 {[%emt 0:00:01]} Rg2+ {[%emt 0:00:09]} 46. Kh1 {[%emt 0:00:01]} Rxg3+ {[%emt 0:00:06]} 47. Kh2 {[%emt 0:00:02]} Nf1# {[%emt 0:00:03]} 0-1

[Event "World Prestigious University 2019"]
[Site "Tianjin"]
[Date "2019.11.29"]
[Round "10.13"]
[White "Theodorou, Nikolas"]
[Black "Kukhmazov, Arsen"]
[Result "1-0"]
[WhiteElo "2555"]
[BlackElo "2377"]
[PlyCount "77"]
[EventDate "2019.11.26"]
[EventType "team-tourn"]
[EventCountry "CHN"]
[TimeControl "1500+10"]
[WhiteClock "0:00:43"]
[BlackClock "0:04:13"]

1. e4 {[%emt 0:00:00]} c6 {[%emt 0:00:00]} 2. Nf3 {[%emt 0:00:00]} d5 {[%emt 0:00:00]} 3. d3 {[%emt 0:00:00]} g6 {[%emt 0:00:06]} 4. e5 {[%emt 0:00:06]} Bg7 {[%emt 0:00:01]} 5. d4 {[%emt 0:00:02]} Bg4 {[%emt 0:00:39]} 6. Nbd2 {[%emt 0:00:11]} e6 {[%emt 0:00:27]} 7. h3 Bxf3 {[%emt 0:00:02]} 8. Nxf3 {[%emt 0:00:29]} c5 {[%emt 0:01:02]} 9. Bb5+ {[%emt 0:00:29]} Nc6 {[%emt 0:00:02]} 10. O-O {[%emt 0:00:23]} Qb6 {[%emt 0:04:07]} 11. c4 {[%emt 0:01:52]} dxc4 {[%emt 0:00:19]} 12. Qa4 {[%emt 0:01:05]} Nge7 {[%emt 0:00:39]} 13. dxc5 {[%emt 0:00:03]} Qc7 {[%emt 0:00:49]} 14. Re1 {[%emt 0:01:19]} O-O {[%emt 0:00:02]} 15. Bxc6 {[%emt 0:01:53]} Nxc6 {[%emt 0:02:45]} 16. Bf4 {[%emt 0:01:30]} Rfd8 {[%emt 0:05:05]} 17. Qxc4 {[%emt 0:01:21]} Rd5 18. b4 {[%emt 0:02:53]} Rad8 {[%emt 0:00:57]} 19. Bg3 {[%emt 0:04:25]} Nd4 {[%emt 0:01:29]} 20. Qc3 {[%emt 0:00:00]} Nf5 21. Bf4 {[%emt 0:00:00]} h6 {[%emt 0:07:30]} 22. Qc2 {[%emt 0:00:00]} Nd4 23. Qe4 {[%emt 0:00:00]} g5 24. Bg3 {[%emt 0:01:07]} Qd7 {[%emt 0:01:55]} 25. h4 {[%emt 0:00:00]} Nxf3+ {[%emt 0:00:00]} 26. Qxf3 {[%emt 0:00:00]} Rd3 {[%emt 0:00:00]} 27. Re3 {[%emt 0:02:55]} Rd1+ {[%emt 0:00:00]} 28. Rxd1 {[%emt 0:00:08]} Qxd1+ {[%emt 0:00:00]} 29. Qxd1 {[%emt 0:00:01]} Rxd1+ {[%emt 0:00:00]} 30. Kh2 {[%emt 0:00:02]} gxh4 {[%emt 0:00:00]} 31. Bxh4 {[%emt 0:00:01]} Rd4 {[%emt 0:00:00]} 32. Be7 {[%emt 0:00:01]} Rd2 {[%emt 0:01:39]} 33. f4 {[%emt 0:01:51]} Rxa2 {[%emt 0:00:27]} 34. Rd3 {[%emt 0:01:02]} Rc2 {[%emt 0:00:14]} 35. b5 {[%emt 0:01:52]} Rb2 {[%emt 0:00:19]} 36. c6 {[%emt 0:00:11]} bxc6 {[%emt 0:00:00]} 37. bxc6 {[%emt 0:00:02]} Rc2 {[%emt 0:00:01]} 38. Rd8+ {[%emt 0:00:01]} Kh7 {[%emt 0:00:01]} 39. Rc8 {[%emt 0:00:02]} 1-0

[Event "World Prestigious University 2019"]
[Site "Tianjin"]
[Date "2019.11.29"]
[Round "10.14"]
[White "Tarasov, Alexandr"]
[Black "Chandra, Akshat"]
[Result "0-1"]
[WhiteElo "2348"]
[BlackElo "2524"]
[PlyCount "100"]
[EventDate "2019.11.26"]
[EventType "team-tourn"]
[EventCountry "CHN"]
[TimeControl "1500+10"]
[WhiteClock "0:00:31"]
[BlackClock "0:00:12"]

1. c4 {[%emt 0:00:00]} e6 {[%emt 0:00:12]} 2. Nc3 {[%emt 0:00:10]} d5 {[%emt 0:00:04]} 3. d4 {[%emt 0:00:01]} a6 {[%emt 0:00:32]} 4. cxd5 {[%emt 0:01:51]} exd5 {[%emt 0:00:04]} 5. Bf4 {[%emt 0:00:29]} c6 {[%emt 0:00:10]} 6. e3 {[%emt 0:01:08]} Bd6 {[%emt 0:00:08]} 7. Bd3 {[%emt 0:03:25]} Ne7 {[%emt 0:01:37]} 8. Bxd6 {[%emt 0:03:05]} Qxd6 {[%emt 0:00:03]} 9. Nge2 {[%emt 0:00:01]} Bf5 {[%emt 0:00:31]} 10. f3 {[%emt 0:00:56]} O-O {[%emt 0:01:01]} 11. O-O {[%emt 0:01:24]} Nd7 {[%emt 0:00:53]} 12. e4 {[%emt 0:00:42]} dxe4 {[%emt 0:00:03]} 13. fxe4 {[%emt 0:00:02]} Bg4 {[%emt 0:00:39]} 14. e5 {[%emt 0:01:19]} Qh6 {[%emt 0:00:28]} 15. Qc2 {[%emt 0:02:35]} c5 {[%emt 0:01:11]} 16. Qc1 {[%emt 0:07:40]} Qxc1 {[%emt 0:00:57]} 17. Raxc1 {[%emt 0:00:02]} cxd4 {[%emt 0:00:06]} 18. Nxd4 {[%emt 0:00:05]} Nxe5 {[%emt 0:00:06]} 19. Be4 {[%emt 0:00:01]} Rad8 {[%emt 0:00:21]} 20. Nb3 {[%emt 0:00:17]} b5 {[%emt 0:05:30]} 21. Nc5 {[%emt 0:00:23]} Bc8 {[%emt 0:00:05]} 22. b4 {[%emt 0:01:05]} Rd4 {[%emt 0:00:15]} 23. a4 {[%emt 0:01:47]} bxa4 {[%emt 0:01:59]} 24. N3xa4 {[%emt 0:00:03]} Rxb4 {[%emt 0:00:35]} 25. Rb1 {[%emt 0:00:01]} Rd4 {[%emt 0:01:27]} 26. Rfd1 {[%emt 0:00:08]} Rc4 {[%emt 0:02:37]} 27. Rdc1 {[%emt 0:00:09]} Rxc1+ {[%emt 0:00:13]} 28. Rxc1 {[%emt 0:00:01]} Rd8 {[%emt 0:01:45]} 29. Nb6 {[%emt 0:00:11]} g6 {[%emt 0:00:25]} 30. Nxc8 {[%emt 0:00:25]} Rxc8 {[%emt 0:00:45]} 31. Bb7 {[%emt 0:00:02]} Rd8 {[%emt 0:00:57]} 32. Bxa6 {[%emt 0:00:15]} Nf5 {[%emt 0:00:35]} 33. Re1 {[%emt 0:00:07]} Rd5 {[%emt 0:00:16]} 34. Ne4 {[%emt 0:00:04]} Kg7 {[%emt 0:00:02]} 35. Bf1 {[%emt 0:00:27]} h5 {[%emt 0:00:03]} 36. Nc3 {[%emt 0:00:18]} Rc5 {[%emt 0:00:09]} 37. Ne4 {[%emt 0:00:05]} Ra5 {[%emt 0:00:16]} 38. Nf2 {[%emt 0:00:17]} Rd5 {[%emt 0:00:29]} 39. Rd1 {[%emt 0:00:15]} Ra5 {[%emt 0:00:04]} 40. Re1 {[%emt 0:00:00]} Kf8 {[%emt 0:00:28]} 41. Nd3 {[%emt 0:00:10]} Ng4 {[%emt 0:00:04]} 42. Be2 {[%emt 0:00:11]} Nge3 {[%emt 0:00:30]} 43. Bf3 {[%emt 0:00:02]} Ra2 {[%emt 0:00:09]} 44. Be4 {[%emt 0:00:08]} Rd2 {[%emt 0:00:19]} 45. Bxf5 {[%emt 0:00:11]} Nxg2 {[%emt 0:02:01]} 46. Re5 {[%emt 0:00:31]} Nh4 {[%emt 0:00:32]} 47. Be4 {[%emt 0:00:08]} Rxd3 {[%emt 0:00:26]} 48. Kf2 {[%emt 0:00:12]} Rd4 {[%emt 0:00:43]} 49. Kg3 {[%emt 0:00:09]} f6 {[%emt 0:00:02]} 50. Re6 {[%emt 0:00:10]} Kf7 {[%emt 0:00:02]} 0-1

[Event "World Prestigious University 2019"]
[Site "Tianjin"]
[Date "2019.11.29"]
[Round "10.15"]
[White "Derakhshani, Dorsa"]
[Black "Bogachkova, Alena"]
[Result "1-0"]
[WhiteElo "2277"]
[BlackElo "2080"]
[PlyCount "73"]
[EventDate "2019.11.26"]
[EventType "team-tourn"]
[EventCountry "CHN"]
[TimeControl "1500+10"]
[WhiteClock "0:00:22"]
[BlackClock "0:05:04"]

1. e4 {[%emt 0:00:00]} c5 {[%emt 0:00:00]} 2. Nf3 {[%emt 0:00:00]} Nc6 {[%emt 0:00:00]} 3. d4 {[%emt 0:00:00]} cxd4 {[%emt 0:00:00]} 4. Nxd4 {[%emt 0:00:00]} e5 {[%emt 0:00:00]} 5. Nb5 {[%emt 0:00:02]} d6 {[%emt 0:00:00]} 6. c4 {[%emt 0:00:13]} Be7 {[%emt 0:00:00]} 7. N1c3 {[%emt 0:00:11]} a6 {[%emt 0:00:01]} 8. Na3 {[%emt 0:00:02]} Nf6 {[%emt 0:00:02]} 9. Be3 {[%emt 0:00:11]} O-O {[%emt 0:00:08]} 10. Qd2 {[%emt 0:01:12]} Ng4 {[%emt 0:03:24]} 11. Nd5 {[%emt 0:02:15]} Nxe3 {[%emt 0:01:15]} 12. Qxe3 {[%emt 0:01:29]} Bg5 {[%emt 0:00:35]} 13. Qb6 {[%emt 0:02:53]} Nd4 {[%emt 0:03:28]} 14. Bd3 {[%emt 0:03:02]} Be6 {[%emt 0:02:25]} 15. Qxd8 {[%emt 0:01:15]} Bxd8 {[%emt 0:00:02]} 16. Ne3 {[%emt 0:01:14]} Ba5+ {[%emt 0:00:37]} 17. Kf1 {[%emt 0:00:02]} Rac8 {[%emt 0:02:18]} 18. b3 {[%emt 0:00:12]} g6 {[%emt 0:00:41]} 19. Nac2 {[%emt 0:03:01]} Bb6 {[%emt 0:06:09]} 20. Nb4 {[%emt 0:02:34]} f5 {[%emt 0:01:19]} 21. Nbd5 {[%emt 0:00:51]} Bd8 {[%emt 0:00:02]} 22. exf5 {[%emt 0:00:34]} gxf5 {[%emt 0:00:30]} 23. f4 {[%emt 0:00:12]} e4 {[%emt 0:01:00]} 24. Be2 {[%emt 0:00:17]} b5 {[%emt 0:01:50]} 25. Rd1 {[%emt 0:00:22]} Nxe2 {[%emt 0:00:29]} 26. Kxe2 {[%emt 0:00:03]} bxc4 {[%emt 0:00:11]} 27. Nxc4 {[%emt 0:00:07]} Rc5 {[%emt 0:00:22]} 28. Nce3 {[%emt 0:00:23]} Bf7 {[%emt 0:01:17]} 29. Rd2 {[%emt 0:00:29]} Bh5+ {[%emt 0:00:49]} 30. Kf2 {[%emt 0:00:25]} Kf7 {[%emt 0:00:31]} 31. Nxf5 {[%emt 0:00:35]} Kg6 {[%emt 0:00:07]} 32. Nxd6 {[%emt 0:00:42]} Ba5 {[%emt 0:00:12]} 33. b4 {[%emt 0:00:31]} Rxd5 {[%emt 0:00:13]} 34. Rxd5 {[%emt 0:00:02]} Bxb4 {[%emt 0:00:14]} 35. Rg5+ {[%emt 0:00:29]} Kf6 {[%emt 0:00:22]} 36. Nxe4+ {[%emt 0:00:02]} Ke6 {[%emt 0:00:05]} 37. Rxh5 {[%emt 0:00:14]} 1-0

[Event "World Prestigious University 2019"]
[Site "Tianjin"]
[Date "2019.11.29"]
[Round "10.16"]
[White "Isakov, Michael"]
[Black "Weichao, Chu"]
[Result "0-1"]
[WhiteElo "2162"]
[BlackElo "2423"]
[PlyCount "133"]
[EventDate "2019.11.26"]
[EventType "team-tourn"]
[EventCountry "CHN"]
[TimeControl "1500+10"]
[WhiteClock "0:02:46"]
[BlackClock "0:01:53"]

1. d4 {[%emt 0:00:00]} Nf6 {[%emt 0:00:00]} 2. Nf3 {[%emt 0:00:00]} g6 {[%emt 0:00:00]} 3. c4 {[%emt 0:00:00]} Bg7 {[%emt 0:00:00]} 4. Nc3 {[%emt 0:00:00]} d5 {[%emt 0:00:01]} 5. Qb3 {[%emt 0:00:00]} c6 {[%emt 0:01:07]} 6. Bf4 {[%emt 0:02:27]} dxc4 {[%emt 0:00:26]} 7. Qxc4 {[%emt 0:00:18]} Be6 {[%emt 0:00:33]} 8. Qd3 {[%emt 0:02:58]} Nd5 {[%emt 0:01:44]} 9. Nxd5 {[%emt 0:01:45]} cxd5 {[%emt 0:03:15]} 10. Qb3 {[%emt 0:00:13]} Qa5+ {[%emt 0:00:53]} 11. Bd2 {[%emt 0:01:18]} Qb6 {[%emt 0:00:01]} 12. e3 {[%emt 0:00:13]} Nc6 {[%emt 0:00:03]} 13. Bd3 {[%emt 0:01:54]} O-O {[%emt 0:01:56]} 14. O-O {[%emt 0:00:10]} Bg4 {[%emt 0:00:02]} 15. Qxd5 {[%emt 0:03:55]} Rad8 {[%emt 0:00:05]} 16. Qb5 {[%emt 0:02:11]} Bxf3 {[%emt 0:00:03]} 17. gxf3 {[%emt 0:01:38]} Nxd4 {[%emt 0:00:39]} 18. exd4 {[%emt 0:02:50]} Qxd4 {[%emt 0:00:03]} 19. Be3 {[%emt 0:02:05]} Qxd3 {[%emt 0:00:07]} 20. Qxb7 {[%emt 0:00:01]} Rd7 {[%emt 0:01:55]} 21. Qb4 {[%emt 0:00:36]} Qf5 {[%emt 0:01:30]} 22. Kg2 {[%emt 0:00:01]} a5 {[%emt 0:00:27]} 23. Qg4 {[%emt 0:01:42]} Qd5 {[%emt 0:02:20]} 24. Rfd1 {[%emt 0:00:37]} Qxd1 {[%emt 0:00:05]} 25. Rxd1 {[%emt 0:00:01]} Rxd1 {[%emt 0:00:02]} 26. Qa4 {[%emt 0:00:38]} Rd5 {[%emt 0:01:09]} 27. b4 {[%emt 0:00:00]} axb4 {[%emt 0:00:43]} 28. Qxb4 {[%emt 0:00:01]} e6 {[%emt 0:00:02]} 29. a4 {[%emt 0:00:23]} Ra8 {[%emt 0:00:04]} 30. Bb6 {[%emt 0:00:10]} Bf8 {[%emt 0:00:01]} 31. Qe4 {[%emt 0:00:11]} Be7 {[%emt 0:00:44]} 32. Bc7 {[%emt 0:00:28]} Rc8 {[%emt 0:03:04]} 33. Bf4 {[%emt 0:00:16]} Bf6 {[%emt 0:00:20]} 34. Be3 {[%emt 0:00:03]} h5 {[%emt 0:01:04]} 35. Qb4 {[%emt 0:00:06]} Ra8 {[%emt 0:00:26]} 36. Bb6 {[%emt 0:00:01]} Rb8 {[%emt 0:00:21]} 37. a5 {[%emt 0:00:08]} Bd8 {[%emt 0:00:47]} 38. Qf4 {[%emt 0:00:02]} Ra8 {[%emt 0:00:01]} 39. Bxd8 {[%emt 0:01:03]} Raxd8 {[%emt 0:01:25]} 40. Qc7 {[%emt 0:00:05]} R5d7 {[%emt 0:00:02]} 41. Qb6 {[%emt 0:00:34]} Ra8 {[%emt 0:00:09]} 42. Kg3 {[%emt 0:00:02]} Rda7 {[%emt 0:00:06]} 43. Kf4 {[%emt 0:00:13]} Rxa5 {[%emt 0:00:03]} 44. Qd6 {[%emt 0:00:11]} Rd5 {[%emt 0:00:55]} 45. Qe7 {[%emt 0:00:06]} Rf5+ {[%emt 0:00:09]} 46. Kg3 {[%emt 0:00:01]} Kh7 {[%emt 0:00:20]} 47. Qd6 {[%emt 0:00:08]} Ra4 {[%emt 0:00:16]} 48. h4 {[%emt 0:00:32]} e5 {[%emt 0:00:15]} 49. Qe7 {[%emt 0:00:21]} Raf4 {[%emt 0:00:04]} 50. Kg2 {[%emt 0:00:02]} Rxf3 {[%emt 0:00:13]} 51. Kh2 {[%emt 0:00:02]} Rxf2+ {[%emt 0:00:06]} 52. Kg1 {[%emt 0:00:01]} R2f4 {[%emt 0:00:02]} 53. Kg2 {[%emt 0:00:05]} Rg4+ {[%emt 0:00:03]} 54. Kh3 {[%emt 0:00:01]} e4 {[%emt 0:00:35]} 55. Kh2 {[%emt 0:00:20]} Rff4 {[%emt 0:00:34]} 56. Qe8 {[%emt 0:00:01]} Rxh4+ {[%emt 0:00:04]} 57. Kg3 {[%emt 0:00:01]} Rhg4+ {[%emt 0:00:51]} 58. Kh3 {[%emt 0:00:06]} Rf3+ {[%emt 0:00:25]} 59. Kh2 {[%emt 0:00:01]} Rf6 {[%emt 0:00:02]} 60. Qe7 {[%emt 0:00:16]} Rgf4 {[%emt 0:00:04]} 61. Kg3 {[%emt 0:00:11]} Rf3+ {[%emt 0:00:03]} 62. Kg2 {[%emt 0:00:08]} Re6 {[%emt 0:00:09]} 63. Qf8 {[%emt 0:00:10]} Rf5 {[%emt 0:00:04]} 64. Qb4 {[%emt 0:00:06]} e3 {[%emt 0:00:03]} 65. Kh3 {[%emt 0:00:07]} e2 {[%emt 0:00:06]} 66. Qe1 {[%emt 0:00:01]} Rf1 {[%emt 0:00:03]} 67. Qc3 {[%emt 0:00:02]} 0-1